bitfinex-derivatives/quotes_BTCF0:USTF0_20240917
["timestamp","ask_amount","ask_price","bid_price","bid_amount"]
[1726565528333,0.01355119,58798.0,58797.0,0.37871983]
[1726565528934,0.01355119,58798.0,58797.0,0.39041773]
[1726565529130,0.01355119,58798.0,58797.0,0.51767982]
[1726565529534,0.01355119,58798.0,58797.0,0.60272182]
[1726565530529,0.011,58798.0,58797.0,0.60272182]
[1726565533324,0.011,58798.0,58797.0,0.43661885]
[1726565534441,0.011,58798.0,58797.0,0.3688239]
[1726565535029,1e-06,58798.0,58797.0,1.63190085]
[1726565535229,0.004,58807.0,58806.0,0.255087]
[1726565535434,0.005,58813.0,58811.0,0.170044]
[1726565535740,0.005,58813.0,58811.0,0.630844]
[1726565536740,0.005,58813.0,58812.0,0.17004]
[1726565537840,0.005,58813.0,58812.0,0.17104]
[1726565538845,0.007,58813.0,58812.0,0.17204]
[1726565539630,0.007,58813.0,58812.0,0.17244]
[1726565540445,0.007,58813.0,58812.0,0.25746]
[1726565541340,0.08120215,58813.0,58812.0,1.36514]
[1726565541538,0.08120215,58813.0,58812.0,1.46514]
[1726565541737,0.08120215,58813.0,58812.0,1.55016]
[1726565542335,0.08120215,58813.0,58812.0,1.55116]
[1726565543343,0.08120215,58813.0,58812.0,1.55016]
[1726565543546,0.20459331,58813.0,58812.0,1.55016]
[1726565543736,0.26728002,58813.0,58812.0,1.55016]
[1726565544247,0.24373034,58813.0,58812.0,1.55016]
[1726565545140,0.24373034,58813.0,58812.0,1.74306]
[1726565545536,0.05765247,58813.0,58812.0,1.74306]
[1726565545735,4.7e-07,58813.0,58812.0,1.74306]
[1726565547247,0.18607787,58816.0,58815.0,0.255048]
[1726565547435,0.18607787,58816.0,58815.0,0.355448]
[1726565547944,0.18607787,58816.0,58815.0,0.170432]
[1726565548146,0.18607787,58816.0,58815.0,0.270432]
[1726565548443,0.004,58825.0,58824.0,0.085003]
[1726565548647,0.1816,58826.0,58824.0,0.085003]
[1726565548648,0.1816,58826.0,58825.0,0.085002]
[1726565548859,0.1816,58826.0,58825.0,0.085402]
[1726565549039,0.1816,58826.0,58825.0,0.085002]
[1726565550358,0.085002,58825.0,58824.0,0.0014]
[1726565550649,0.085002,58825.0,58824.0,0.086403]
[1726565550650,0.085402,58825.0,58824.0,0.086403]
[1726565551341,0.085402,58825.0,58824.0,0.085403]
[1726565551742,0.085402,58825.0,58824.0,0.086403]
[1726565552145,0.085402,58825.0,58824.0,0.087403]
[1726565553751,0.085402,58825.0,58824.0,0.187403]
[1726565554145,0.0004,58825.0,58824.0,0.187403]
[1726565556052,0.0004,58825.0,58824.0,0.19909752]
[1726565557654,0.085402,58825.0,58824.0,0.19909752]
[1726565561256,0.085402,58825.0,58824.0,0.09909752]
[1726565563457,0.085402,58825.0,58818.0,0.085012]
[1726565563458,0.30274567,58825.0,58818.0,0.0510231]
[1726565563695,0.2205963,58820.0,58819.0,0.08501]
[1726565563857,0.43793997,58820.0,58819.0,0.27002]
[1726565564462,0.21734367,58820.0,58819.0,0.27002]
[1726565564756,0.21734367,58820.0,58819.0,0.18501]
[1726565564954,0.21734367,58820.0,58819.0,0.18601]
[1726565565261,0.21734367,58820.0,58819.0,0.27102]
[1726565565558,0.21934367,58820.0,58819.0,0.18701]
[1726565567953,0.21036656,58820.0,58819.0,0.18701]
[1726565570159,0.29537556,58820.0,58819.0,0.18701]
[1726565570355,0.29537556,58820.0,58819.0,0.08701]
[1726565571465,0.087009,58820.0,58819.0,0.08701]
[1726565571661,0.172018,58820.0,58819.0,0.002]
[1726565572562,0.172018,58820.0,58819.0,0.08701]
[1726565573570,0.087009,58820.0,58819.0,0.08701]
[1726565578372,0.22784473,58820.0,58819.0,0.08701]
[1726565578666,0.22784473,58820.0,58819.0,0.04026882]
[1726565578873,0.22784473,58820.0,58819.0,0.14026882]
[1726565580472,0.08501,58819.0,58818.0,0.01390916]
[1726565580772,0.08501,58819.0,58807.0,0.093627]
[1726565580773,0.085024,58812.0,58808.0,0.19542695]
[1726565581068,0.085024,58812.0,58811.0,0.085019]
[1726565581270,0.28512967,58812.0,58811.0,0.085019]
[1726565581672,0.28412967,58812.0,58811.0,0.085019]
[1726565583271,0.28512967,58812.0,58811.0,0.085019]
[1726565584282,0.085026,58809.0,58808.0,0.085026]
[1726565584577,0.28553167,58809.0,58808.0,0.085026]
[1726565584983,0.28442234,58809.0,58808.0,0.085026]
[1726565585579,0.50514877,58809.0,58808.0,0.185026]
[1726565585779,0.50514877,58809.0,58808.0,0.187026]
[1726565586477,0.085426,58809.0,58808.0,0.187026]
[1726565586774,0.085426,58809.0,58808.0,0.190026]
[1726565588067,0.0004,58809.0,58808.0,0.2017103]
[1726565591879,0.0004,58809.0,58808.0,0.2867363]
[1726565592077,0.3608,58813.0,58812.0,0.08502]
[1726565592381,0.3608,58813.0,58812.0,0.27004]
[1726565592575,0.3608,58813.0,58812.0,0.27044]
[1726565592880,0.3608,58813.0,58812.0,0.18542]
[1726565593279,0.3628,58813.0,58812.0,0.23626879]
[1726565593474,0.3628,58813.0,58812.0,0.0004]
[1726565593475,0.49763404,58813.0,58812.0,0.0004]
[1726565593681,0.58265404,58813.0,58812.0,0.08502]
[1726565594180,0.085022,58812.0,58810.0,0.185022]
[1726565594478,0.13423404,58811.0,58810.0,0.185022]
[1726565596369,0.13423404,58811.0,58810.0,0.186022]
[1726565597174,0.13423404,58811.0,58810.0,0.185022]
[1726565597376,0.13423404,58811.0,58810.0,0.186022]
[1726565598282,0.13423404,58811.0,58810.0,0.086022]
[1726565599176,0.21925604,58811.0,58810.0,0.086022]
[1726565600380,0.13423404,58811.0,58810.0,0.186022]
[1726565601584,0.0004,58811.0,58810.0,0.30141223]
[1726565601882,0.0004,58811.0,58810.0,0.488057]
[1726565602085,0.287813,58817.0,58816.0,0.085015]
[1726565602286,0.287813,58817.0,58816.0,0.085415]
[1726565603094,0.287813,58817.0,58816.0,0.06822429]
[1726565603397,0.293813,58817.0,58816.0,0.0014]
[1726565604093,0.293813,58817.0,58816.0,0.15423929]
[1726565604601,0.293813,58817.0,58816.0,0.086415]
[1726565605705,0.293813,58817.0,58816.0,0.15423929]
[1726565608505,0.293813,58817.0,58816.0,0.086415]
[1726565608708,0.33059267,58817.0,58816.0,0.086415]
[1726565609218,0.293813,58817.0,58816.0,0.086415]
[1726565609799,0.33066069,58817.0,58816.0,0.086415]
[1726565613004,0.293813,58817.0,58816.0,0.086415]
[1726565614506,0.006,58817.0,58816.0,0.17143]
[1726565615116,0.006,58817.0,58816.0,0.086415]
[1726565616613,0.1987589,58817.0,58815.0,0.1]
[1726565616818,0.1931589,58816.0,58815.0,0.185016]
[1726565618013,0.1931589,58816.0,58815.0,0.355048]
[1726565618215,0.1931589,58816.0,58815.0,1.465128]
[1726565619215,0.19001519,58816.0,58815.0,1.465128]
[1726565619413,0.13204215,58816.0,58815.0,1.465128]
[1726565619719,0.06097304,58819.0,58818.0,0.170024]
[1726565619926,0.11314362,58819.0,58818.0,0.716236]
[1726565620310,0.05217058,58819.0,58818.0,0.716236]
[1726565620513,0.11314362,58819.0,58818.0,0.716236]
[1726565620711,0.05217058,58819.0,58818.0,0.716236]
[1726565620917,0.11314362,58819.0,58818.0,0.716236]
[1726565621118,0.05617058,58819.0,58818.0,0.717236]
[1726565621323,0.22100426,58825.0,58824.0,0.255009]
[1726565621616,0.3608,58831.0,58830.0,0.084994]
[1726565621817,0.3608,58831.0,58830.0,0.185394]
[1726565623010,0.3618,58831.0,58830.0,0.186394]
[1726565623207,0.3618,58831.0,58830.0,0.19880258]
[1726565624419,0.3618,58831.0,58830.0,0.09880258]
[1726565624616,0.3618,58831.0,58830.0,0.19880258]
[1726565624816,0.3618,58831.0,58830.0,0.28379658]
[1726565625013,0.3618,58831.0,58830.0,0.19880258]
[1726565625515,0.3618,58831.0,58830.0,0.28379658]
[1726565626322,0.001,58831.0,58830.0,0.28379658]
[1726565626721,0.004,58839.0,58838.0,0.084983]
[1726565626923,0.008,58844.0,58843.0,0.084976]
[1726565627316,0.008,58844.0,58843.0,0.085376]
[1726565627621,0.008,58844.0,58843.0,0.170352]
[1726565627824,0.008,58844.0,58843.0,0.531152]
[1726565628014,0.008,58844.0,58843.0,0.691152]
[1726565628423,0.008,58844.0,58843.0,0.70244463]
[1726565628619,0.008,58844.0,58843.0,1.21228463]
[1726565629422,0.008,58844.0,58843.0,1.81428463]
[1726565631026,0.008,58844.0,58843.0,1.21428463]
[1726565631729,0.19668123,58844.0,58843.0,1.19722307]
[1726565631917,0.19668123,58844.0,58843.0,0.68738307]
[1726565632117,0.19668123,58844.0,58843.0,1.19722307]
[1726565632318,0.19668123,58844.0,58843.0,0.68738307]
[1726565632619,0.19668123,58844.0,58843.0,0.34324463]
[1726565632819,0.19708123,58844.0,58843.0,0.34324463]
[1726565633415,0.19708123,58844.0,58843.0,1.45308463]
[1726565633622,0.19708123,58844.0,58843.0,0.34324463]
[1726565634921,0.13614908,58844.0,58843.0,0.34324463]
[1726565635523,0.19708123,58844.0,58843.0,0.25826863]
[1726565635727,0.55788123,58844.0,58843.0,0.25826863]
[1726565636217,0.49694908,58844.0,58843.0,0.25826863]
[1726565638227,0.49694908,58844.0,58843.0,0.09826863]
[1726565638537,0.3692,58844.0,58843.0,0.09826863]
[1726565640133,0.3692,58844.0,58836.0,0.00053119]
[1726565640437,0.882,58837.0,58816.0,0.01138141]
[1726565640732,0.882,58837.0,58815.0,0.00255037]
[1726565640733,0.3608,58826.0,58817.0,0.3608]
[1726565640925,0.3608,58826.0,58821.0,0.16]
[1726565641629,0.3608,58826.0,58821.0,0.245007]
[1726565643133,0.3628,58826.0,58821.0,0.270007]
[1726565646534,0.31177399,58826.0,58822.0,0.11943524]
[1726565646737,0.20972198,58826.0,58823.0,0.11943524]
[1726565646935,0.20972198,58826.0,58824.0,0.11943524]
[1726565647133,0.20972198,58826.0,58825.0,0.11943524]
[1726565647731,0.20972198,58826.0,58825.0,0.27943524]
[1726565647934,0.59300001,58831.0,58825.0,0.38105701]
[1726565648126,0.5918,58831.0,58830.0,0.1604]
[1726565648339,0.5918,58831.0,58830.0,0.27983524]
[1726565648532,0.3873,58831.0,58830.0,0.27983524]
[1726565648744,0.3873,58831.0,58830.0,0.11983524]
[1726565648745,0.472293,58831.0,58830.0,0.11983524]
[1726565648927,0.472293,58831.0,58830.0,0.0004]
[1726565649130,0.17001,58823.0,58822.0,0.012]
[1726565649431,0.17001,58823.0,58815.0,0.00255037]
[1726565649432,0.082015,58816.0,58815.0,0.00255037]
[1726565649745,0.082015,58816.0,58804.0,0.10162177]
[1726565649746,0.08502,58812.0,58804.0,0.10162177]
[1726565650040,0.085032,58804.0,58803.0,0.00255025]
[1726565650235,0.083832,58804.0,58803.0,0.12258228]
[1726565650431,0.083832,58804.0,58803.0,0.12170228]
[1726565651139,0.069832,58804.0,58803.0,0.12170228]
[1726565651340,0.062832,58804.0,58803.0,0.12170228]
[1726565651728,0.062832,58804.0,58803.0,0.13570228]
[1726565652132,0.063832,58804.0,58803.0,0.02255025]
[1726565652937,0.0018,58804.0,58803.0,0.11904268]
[1726565653137,0.085036,58801.0,58800.0,0.43158]
[1726565653443,0.085836,58801.0,58800.0,0.43158]
[1726565653662,0.596036,58801.0,58800.0,0.12468]
[1726565654345,0.597036,58801.0,58800.0,0.12468]
[1726565654740,0.598036,58801.0,58800.0,0.12468]
[1726565655946,0.60945265,58801.0,58800.0,0.12468]
[1726565657440,0.09925265,58801.0,58800.0,0.12468]
[1726565659940,0.09925265,58801.0,58800.0,0.209718]
[1726565660146,0.01421665,58801.0,58800.0,0.209718]
[1726565660341,0.0028,58801.0,58800.0,0.209718]
[1726565660543,0.0028,58801.0,58800.0,0.085038]
[1726565662243,0.087836,58801.0,58800.0,0.085038]
[1726565663049,0.0028,58801.0,58800.0,0.085038]
[1726565666763,0.445832,58805.0,58804.0,0.085032]
[1726565667955,0.446832,58805.0,58804.0,0.085032]
[1726565673772,0.807632,58805.0,58804.0,0.085032]
[1726565676259,0.807632,58805.0,58804.0,0.20457473]
[1726565676676,0.807632,58805.0,58804.0,0.28918068]
[1726565676677,0.7226,58805.0,58804.0,0.28918068]
[1726565677273,0.7226,58805.0,58804.0,0.20457473]
[1726565678167,0.807631,58805.0,58804.0,0.20457473]
[1726565678871,0.807631,58805.0,58804.0,0.20436432]
[1726565679271,0.807631,58805.0,58804.0,0.34683979]
[1726565680772,0.892662,58805.0,58804.0,0.26180779]
[1726565683605,0.085032,58804.0,58803.0,0.085033]
[1726565683778,0.085832,58804.0,58803.0,0.3473196]
[1726565684477,0.170864,58804.0,58803.0,0.3473196]
[1726565684678,0.171864,58804.0,58803.0,0.3473196]
[1726565684978,0.172864,58804.0,58803.0,0.3473196]
[1726565685680,0.087832,58804.0,58803.0,0.3473196]
[1726565687476,0.0028,58804.0,58803.0,0.51295293]
[1726565688279,0.087832,58804.0,58803.0,0.51295293]
[1726565688475,0.087832,58804.0,58803.0,0.51176804]
[1726565690785,0.087832,58804.0,58803.0,0.34661491]
[1726565691584,0.04528893,58804.0,58803.0,0.34661491]
[1726565692380,0.13032093,58804.0,58803.0,0.2043699]
[1726565692768,0.04528893,58804.0,58803.0,0.2043699]
[1726565692973,0.13032093,58804.0,58803.0,0.2043699]
[1726565693183,0.13032093,58804.0,58803.0,0.20568223]
[1726565693378,0.04528893,58804.0,58803.0,0.20568223]
[1726565693578,0.13032093,58804.0,58803.0,0.20568223]
[1726565694082,0.23032093,58804.0,58803.0,0.20568223]
[1726565694876,0.14528893,58804.0,58803.0,0.20568223]
[1726565696185,0.23032093,58804.0,58803.0,0.20568223]
[1726565696575,0.14528893,58804.0,58803.0,0.20568223]
[1726565697386,0.14528893,58804.0,58803.0,0.30770876]
[1726565697981,0.23032093,58804.0,58803.0,0.30770876]
[1726565698191,0.14528893,58804.0,58803.0,0.20568223]
[1726565698382,0.23032093,58804.0,58803.0,0.12064923]
[1726565699691,0.95192093,58804.0,58803.0,0.12064923]
[1726565700186,0.95192093,58804.0,58803.0,0.26255586]
[1726565701194,0.86688893,58804.0,58803.0,0.34758886]
[1726565701487,0.86688893,58804.0,58803.0,0.34757407]
[1726565702691,0.806632,58804.0,58803.0,0.34757407]
[1726565703891,0.906632,58804.0,58803.0,0.34757407]
[1726565706398,0.906632,58804.0,58803.0,0.34654342]
[1726565711288,0.8216,58804.0,58803.0,0.34654342]
[1726565712396,0.906632,58804.0,58803.0,0.50984446]
[1726565712599,0.906632,58804.0,58803.0,0.50987804]
[1726565712801,0.906632,58804.0,58803.0,0.62887894]
[1726565713098,0.806632,58804.0,58803.0,0.62887894]
[1726565713395,0.806632,58804.0,58803.0,0.50987804]
[1726565713787,0.806632,58804.0,58803.0,0.50992434]
[1726565713999,0.806632,58804.0,58803.0,0.62899208]
[1726565714194,0.806632,58804.0,58803.0,0.34654342]
[1726565714793,0.806632,58804.0,58803.0,0.35782446]
[1726565715102,0.7216,58804.0,58803.0,0.44285746]
[1726565715289,0.004,58812.0,58811.0,0.085022]
[1726565715488,0.3608,58812.0,58811.0,0.56425665]
[1726565715705,0.3608,58812.0,58811.0,0.58555591]
[1726565715888,0.3608,58812.0,58811.0,0.69044421]
[1726565716095,0.3608,58817.0,58816.0,0.085015]
[1726565716289,0.3608,58817.0,58816.0,0.34286857]
[1726565716800,0.3608,58817.0,58816.0,1.10048276]
[1726565717194,0.00255056,58819.0,58818.0,0.085012]
[1726565717390,0.00255056,58819.0,58818.0,0.72376388]
[1726565717693,0.00255056,58819.0,58818.0,0.60507976]
[1726565717888,0.00255056,58819.0,58818.0,0.66507976]
[1726565718098,0.00255056,58819.0,58818.0,0.75009176]
[1726565718402,0.00255056,58819.0,58818.0,0.58787757]
[1726565718699,0.00255056,58819.0,58818.0,0.74930646]
[1726565718897,0.00555056,58819.0,58818.0,0.86791267]
[1726565719198,0.00555056,58819.0,58818.0,0.70648378]
[1726565719495,0.01155056,58819.0,58818.0,0.58787757]
[1726565719893,0.01155056,58819.0,58818.0,0.50286557]
[1726565720290,0.01155056,58819.0,58818.0,0.245412]
[1726565720593,0.01155056,58819.0,58818.0,0.50111389]
[1726565720788,0.01155056,58819.0,58818.0,0.36206636]
[1726565720995,0.004,58824.0,58819.0,0.08501]
[1726565721299,0.004,58829.0,58828.0,0.084997]
[1726565721595,0.00255005,58830.0,58828.0,0.084997]
[1726565721596,0.00255005,58830.0,58829.0,0.169992]
[1726565721804,0.004,58837.0,58836.0,0.084986]
[1726565721993,0.0088,58842.0,58841.0,0.084979]
[1726565722306,0.0088,58842.0,58841.0,0.605779]
[1726565722888,0.0088,58842.0,58841.0,0.794279]
[1726565723102,0.0088,58842.0,58841.0,0.634279]
[1726565723901,0.0198,58842.0,58841.0,0.634279]
[1726565724891,0.0278,58842.0,58841.0,0.634279]
[1726565729606,0.0278,58842.0,58841.0,0.273479]
[1726565731607,0.0278,58842.0,58841.0,0.084979]
[1726565734204,0.112777,58842.0,58841.0,0.084979]
[1726565734405,0.084982,58840.0,58839.0,0.084981]
[1726565734715,0.085382,58840.0,58839.0,0.084981]
[1726565735614,0.091382,58840.0,58839.0,0.084981]
[1726565736012,0.0154,58840.0,58839.0,0.084981]
[1726565736214,0.100382,58840.0,58839.0,0.084981]
[1726565736721,0.05787025,58840.0,58839.0,0.084981]
[1726565738105,0.0088,58842.0,58839.0,0.084981]
[1726565738411,0.084982,58840.0,58839.0,0.084981]
[1726565740320,0.084982,58840.0,58839.0,0.15247717]
[1726565741322,0.0148,58842.0,58839.0,0.084981]
[1726565741621,0.093777,58842.0,58841.0,0.06783037]
[1726565741816,0.193777,58842.0,58841.0,0.06783037]
[1726565742418,0.193777,58842.0,58841.0,0.085379]
[1726565742419,0.198777,58842.0,58841.0,0.085379]
[1726565742624,0.206777,58842.0,58841.0,0.085379]
[1726565743225,0.198777,58842.0,58841.0,0.085379]
[1726565743417,0.208777,58842.0,58841.0,0.17090514]
[1726565743923,0.208777,58842.0,58841.0,0.086379]
[1726565744131,0.293754,58842.0,58841.0,0.0014]
[1726565744524,0.296754,58842.0,58841.0,0.0024]
[1726565746023,0.196754,58842.0,58841.0,0.0024]
[1726565748131,0.296754,58842.0,58841.0,0.0024]
[1726565749326,0.296754,58842.0,58841.0,0.06993872]
[1726565750432,0.296754,58842.0,58841.0,0.0024]
[1726565750931,0.296754,58842.0,58841.0,0.25364129]
[1726565751331,0.296754,58842.0,58841.0,0.41238506]
[1726565754638,0.084983,58838.0,58835.0,0.12136607]
[1726565754835,0.4612,58836.0,58835.0,0.00254932]
[1726565755043,0.446186,58836.0,58835.0,0.08753632]
[1726565756049,0.449186,58836.0,58835.0,0.08753632]
[1726565757048,0.634172,58836.0,58835.0,0.08753632]
[1726565757540,0.551186,58836.0,58835.0,0.08753632]
[1726565758136,0.56247659,58836.0,58835.0,0.08753632]
[1726565759344,0.46247659,58836.0,58835.0,0.08753632]
[1726565761437,0.56247659,58836.0,58835.0,0.08753632]
[1726565766048,0.56247659,58836.0,58835.0,0.18933231]
[1726565766543,0.56247659,58836.0,58835.0,0.08753632]
[1726565767948,0.64746259,58836.0,58835.0,0.08753632]
[1726565768348,0.64746259,58836.0,58835.0,0.18930376]
[1726565768544,0.56247659,58836.0,58835.0,0.18930376]
[1726565768744,0.20167659,58836.0,58835.0,0.08753632]
[1726565769146,0.20167659,58836.0,58835.0,0.18930025]
[1726565769646,0.28666259,58836.0,58835.0,0.11625369]
[1726565770047,0.37164859,58836.0,58835.0,0.11625369]
[1726565770247,0.88152859,58836.0,58835.0,0.08737613]
[1726565770448,1.48152859,58836.0,58835.0,0.00254932]
[1726565774446,1.39654259,58836.0,58835.0,0.00254932]
[1726565774648,1.48152859,58836.0,58835.0,0.00254932]
[1726565775548,1.39654259,58836.0,58835.0,0.00254932]
[1726565775847,0.79654259,58836.0,58835.0,0.00254932]
[1726565776556,1.39654259,58836.0,58835.0,0.00254932]
[1726565776762,1.48152859,58836.0,58835.0,0.00254932]
[1726565778160,1.39654259,58836.0,58835.0,0.00254932]
[1726565781066,0.79654259,58836.0,58835.0,0.00254932]
[1726565781865,0.28666259,58836.0,58835.0,0.00254932]
[1726565782454,0.79654259,58836.0,58835.0,0.00254932]
[1726565783249,0.79654259,58836.0,58835.0,0.20136523]
[1726565783654,1.15734259,58836.0,58835.0,0.20136523]
[1726565784157,1.15734259,58836.0,58835.0,0.28631298]
[1726565784158,0.56247659,58836.0,58835.0,0.28631298]
[1726565784462,0.51995836,58836.0,58835.0,0.20148617]
[1726565784661,0.37709059,58836.0,58835.0,0.20148617]
[1726565784863,0.0092,58842.0,58835.0,0.71294938]
[1726565785067,0.0092,58842.0,58841.0,0.185379]
[1726565785256,0.0092,58842.0,58841.0,0.51995806]
[1726565785762,0.00254919,58849.0,58848.0,0.084968]
[1726565785965,0.00254919,58849.0,58848.0,0.33305042]
[1726565786563,0.004,58857.0,58856.0,0.084957]
[1726565786761,0.3633489,58858.0,58857.0,0.084955]
[1726565786988,0.3633489,58858.0,58857.0,0.28332205]
[1726565787167,0.3633489,58858.0,58857.0,0.28252205]
[1726565787366,0.3633489,58858.0,58857.0,0.084955]
[1726565787863,0.3773489,58858.0,58857.0,0.085955]
[1726565788761,0.4623029,58858.0,58857.0,0.085955]
[1726565789660,0.4763029,58858.0,58857.0,0.086955]
[1726565791370,0.4763029,58858.0,58857.0,0.13763436]
[1726565792671,0.4763029,58858.0,58857.0,0.086955]
[1726565794869,0.3913489,58858.0,58857.0,0.502855]
[1726565795870,0.01138029,58860.0,58857.0,0.502855]
[1726565796065,0.004,58865.0,58864.0,0.084945]
[1726565796268,0.10114235,58867.0,58864.0,0.3616]
[1726565796566,0.10114235,58867.0,58866.0,0.085741]
[1726565796567,0.084941,58867.0,58866.0,0.085741]
[1726565796868,0.084941,58867.0,58866.0,0.084941]
[1726565797069,0.18607935,58870.0,58869.0,0.084938]
[1726565797275,0.18607635,58872.0,58869.0,0.3616]
[1726565797464,0.10131753,58872.0,58871.0,0.0008]
[1726565797774,0.18624953,58874.0,58873.0,0.084932]
[1726565797971,0.11499834,58875.0,58874.0,0.084931]
[1726565798180,0.10385677,58875.0,58874.0,0.085731]
[1726565798471,0.00254806,58875.0,58874.0,0.084931]
[1726565799370,0.00254806,58875.0,58874.0,0.085931]
[1726565799371,0.00854806,58875.0,58874.0,0.085931]
[1726565800467,0.01254806,58875.0,58874.0,0.086931]
[1726565801360,0.01254806,58875.0,58874.0,0.246931]
[1726565802669,0.00654806,58875.0,58874.0,0.246931]
[1726565803070,0.00654806,58875.0,58874.0,0.086931]
[1726565803569,0.00254806,58875.0,58874.0,0.085931]
[1726565803774,0.00654806,58875.0,58874.0,0.086931]
[1726565805865,0.00654806,58875.0,58874.0,0.171862]
[1726565806270,0.00654806,58875.0,58874.0,0.086931]
[1726565811681,0.09147706,58875.0,58874.0,0.086931]
[1726565818577,0.10269991,58875.0,58874.0,0.086931]
[1726565819271,0.10269991,58875.0,58874.0,0.447731]
[1726565820473,0.34762891,58875.0,58874.0,0.3628]
[1726565820775,0.34762891,58875.0,58874.0,0.41342709]
[1726565820981,0.34762891,58875.0,58874.0,0.3628]
[1726565822273,0.34762891,58875.0,58874.0,0.41342709]
[1726565822776,0.34762891,58875.0,58874.0,0.3628]
[1726565823277,0.34762891,58875.0,58874.0,0.41342709]
[1726565824280,0.34762891,58875.0,58874.0,0.3628]
[1726565824968,0.43255791,58875.0,58874.0,0.3628]
[1726565825175,0.254793,58874.0,58873.0,0.0008]
[1726565825370,0.254793,58874.0,58873.0,0.05148927]
[1726565826182,1.364353,58874.0,58873.0,0.05148927]
[1726565826577,1.364353,58874.0,58873.0,0.06830279]
[1726565826777,1.370353,58874.0,58873.0,0.06930279]
[1726565827279,1.375353,58874.0,58873.0,0.0028]
[1726565827779,1.46343137,58874.0,58873.0,0.0028]
[1726565828178,0.26894037,58874.0,58873.0,0.0028]
[1726565828384,0.30178922,58874.0,58873.0,0.448532]
[1726565828585,0.23799508,58874.0,58873.0,0.448532]
[1726565828797,0.30641645,58874.0,58873.0,0.448532]
[1726565829084,0.40772326,58874.0,58873.0,0.448532]
[1726565829280,0.32279226,58874.0,58873.0,0.448532]
[1726565829480,0.32279226,58874.0,58873.0,0.533464]
[1726565829872,0.18072818,58874.0,58873.0,0.533464]
[1726565830088,0.2215227,58874.0,58873.0,0.533464]
[1726565830277,0.27545689,58874.0,58873.0,0.533464]
[1726565830580,0.32282124,58874.0,58873.0,0.533464]
[1726565831482,0.15315768,58874.0,58873.0,0.533464]
[1726565832975,0.15315768,58874.0,58873.0,0.448532]
[1726565833292,0.22164973,58874.0,58873.0,0.448532]
[1726565833483,0.32297344,58874.0,58873.0,0.448532]
[1726565834287,0.15312837,58874.0,58873.0,0.448532]
[1726565834584,0.011,58874.0,58873.0,0.448532]
[1726565835791,0.011,58874.0,58873.0,0.087732]
[1726565835989,0.011,58874.0,58873.0,0.448532]
[1726565836784,0.011,58874.0,58873.0,0.533464]
[1726565838293,0.011,58874.0,58873.0,0.61784248]
[1726565838585,0.011,58874.0,58873.0,0.7296607]
[1726565838789,0.011,58874.0,58873.0,0.64528222]
[1726565839317,0.011,58874.0,58873.0,0.73001655]
[1726565840280,0.011,58874.0,58873.0,0.61819833]
[1726565842411,0.011,58874.0,58873.0,0.533464]
[1726565842599,0.15335474,58874.0,58873.0,0.533464]
[1726565842891,0.15335474,58874.0,58873.0,0.48243791]
[1726565843293,0.15415474,58874.0,58873.0,0.48243791]
[1726565843804,0.15415474,58874.0,58873.0,0.56736991]
[1726565845200,0.15415474,58874.0,58873.0,0.48243791]
[1726565846885,0.15415474,58874.0,58873.0,0.530664]
[1726565847495,0.14984473,58874.0,58873.0,0.530664]
[1726565848190,0.0118,58874.0,58873.0,0.530664]
[1726565848390,0.14982914,58874.0,58873.0,0.530664]
[1726565849596,0.11020136,58874.0,58873.0,0.530664]
[1726565849800,0.0118,58874.0,58873.0,0.64348676]
[1726565851901,0.0118,58874.0,58873.0,0.55855476]
[1726565853706,0.0118,58874.0,58873.0,0.65855476]
[1726565854701,0.0118,58874.0,58873.0,0.29775476]
[1726565854907,0.0118,58874.0,58873.0,0.65855476]
[1726565856104,0.0118,58874.0,58873.0,0.11282276]
[1726565856105,0.096731,58874.0,58873.0,0.11282276]
[1726565856303,0.096731,58874.0,58869.0,0.01187988]
[1726565856304,0.084937,58870.0,58869.0,0.3608]
[1726565856499,0.184937,58870.0,58869.0,0.3608]
[1726565856806,0.084937,58870.0,58869.0,0.445738]
[1726565857605,0.090937,58870.0,58869.0,0.446738]
[1726565857907,0.090937,58870.0,58869.0,0.3618]
[1726565858301,0.098937,58870.0,58869.0,0.3628]
[1726565858604,0.183874,58870.0,58869.0,0.3628]
[1726565858822,0.283874,58870.0,58869.0,0.4474683]
[1726565859503,0.29495494,58870.0,58869.0,0.4474683]
[1726565859911,0.29495494,58870.0,58869.0,0.3628]
[1726565860211,0.29495494,58870.0,58869.0,0.4474683]
[1726565860515,0.29495494,58870.0,58869.0,0.3628]
[1726565861707,0.29495494,58870.0,58869.0,0.43051498]
[1726565862300,0.29495494,58870.0,58869.0,0.51545164]
[1726565862609,0.02508094,58870.0,58869.0,0.447738]
[1726565862809,0.014,58870.0,58869.0,0.5324063]
[1726565863110,0.014,58870.0,58869.0,0.447738]
[1726565864805,0.16690141,58870.0,58869.0,0.808538]
[1726565865009,0.26723053,58870.0,58869.0,0.81947948]
[1726565865212,0.30763465,58870.0,58869.0,0.81947948]
[1726565866007,0.15473324,58870.0,58869.0,0.81947948]
[1726565866716,0.30744848,58870.0,58869.0,0.81947948]
[1726565867404,0.1013152,58870.0,58869.0,0.81947948]
[1726565871107,0.1928536,58870.0,58869.0,0.808538]
[1726565871319,0.29202217,58870.0,58869.0,0.808538]
[1726565871621,0.3073294,58870.0,58869.0,0.808538]
[1726565872023,0.3922664,58870.0,58869.0,0.808538]
[1726565872215,0.18617832,58870.0,58869.0,0.808538]
[1726565872810,0.098937,58870.0,58869.0,0.92051419]
[1726565873011,0.098937,58870.0,58869.0,1.00515623]
[1726565873211,0.098937,58870.0,58869.0,0.92051419]
[1726565873723,0.098937,58870.0,58869.0,0.55971419]
[1726565876107,0.098937,58870.0,58869.0,0.5596839]
[1726565879818,0.23993755,58870.0,58869.0,0.447738]
[1726565880119,0.2399675,58870.0,58869.0,0.447738]
[1726565880323,0.426847,58870.0,58869.0,0.447738]
[1726565881409,0.2399675,58870.0,58869.0,0.447738]
[1726565884717,0.23593256,58870.0,58869.0,0.447738]
[1726565884921,0.15099556,58870.0,58869.0,0.532676]
[1726565885120,0.15099556,58870.0,58869.0,0.447738]
[1726565885426,0.15099556,58870.0,58869.0,0.664138]